Cogmind - Beta 16 @@@ ROGUE MODE // 2025.12.30 @ 13:48:23 Player: Skysub Result: Destroyed by SI-N0I(x) with Makeshift Spear Performance ------------- Evolutions (3) 1500 Regions Visited (9) 1800 Robots Destroyed (127) 635 Value Destroyed (3209) 3209 Prototype IDs (35) 700 Alien Tech Used (0) 0 Bonus (-315) -315 TOTAL SCORE: 7529 Bonus ------- High Alert Combat Kills 71 Follower Combat Kills 135 Aligned with FarCom 300 Friendly Fire -821 Cogmind --------- Core Integrity 0/700 Matter 296/300 Energy 49/290 System Corruption 0% Temperature Warning (351) Movement Core (1500) Ox29 Location -7/Scraptown Parts ------- > --- POWER (1) -------- Improved Deuterium Engine > --- PROPULSION (3) --- (None) > --- UTILITY (6) ------ Huge Storage Unit Advanced Targeting Computer > --- WEAPON (3) ------- (None) > --- INVENTORY (25) --- Enhanced Nuclear Core Fission Core Medium Treads Structural Scanner Transmission Jammer Hardened Heavy Armor Plating Improved Medium Armor Plating Improved Medium Armor Plating Remote Force Field Authchip [Weapon] Improved Trap Extractor (0/6) Improved Lightning Gun Cooled Particle Cannon Cooled Particle Cannon Cooled Particle Cannon Cooled Particle Cannon Cooled Particle Cannon Cooled Particle Cannon Firepult Missile Launcher Great Axe Peak State ------------ > --- POWER ------------ Enhanced Nuclear Core > --- PROPULSION ------- Armored Treads Wheel Compact Wheel > --- UTILITY ---------- Power Amplifier Improved Cooling System Huge Storage Unit Advanced Targeting Computer Hardened Medium Armor Plating Improved Medium Armor Plating > --- WEAPON ----------- KN-7UR's Autopenetrator Cooled Particle Cannon Cooled Particle Cannon > --- INVENTORY -------- Improved Deuterium Engine Enhanced Nuclear Core Fission Core Medium Treads Structural Scanner Transmission Jammer Hardened Heavy Armor Plating Improved Medium Armor Plating Improved Medium Armor Plating Remote Force Field Authchip [Weapon] Improved Trap Extractor Improved Lightning Gun Cooled Particle Cannon Cooled Particle Cannon Cooled Particle Cannon Cooled Particle Cannon Cooled Particle Cannon Cooled Particle Cannon Firepult Missile Launcher Heavy Rocket Launcher Great Axe [Rating: 60] Favorites ----------- Power Light Ion Engine Engine Light Ion Engine Power Core Enhanced Nuclear Core Propulsion Wheel Treads Armored Treads Wheel Wheel Utility Huge Storage Unit Device Transmission Jammer Storage Huge Storage Unit Processor Advanced Targeting Computer Protection Hardened Medium Armor Plating Weapon Autogun Energy Gun Cooled Pulse Rifle Energy Cannon Cooled Particle Cannon Ballistic Gun Autogun Launcher Grenade Launcher Slashing Weapon Chainsword Build | -11 -10 -10 -10 -9 -8 -7 -7 -7 -7 ------- Run | Yrd Mat Min Exi Min Mat Fac Sto Rec Scr Slots Evolved 6 | . . . . . 4 2 . . . Power . | . . . . . . . . . . Propulsion 1 | . . . . . 1 . . . . Utility 4 | . . . . . 3 1 . . . Weapon 1 | . . . . . . 1 . . . Parts Attached 81 | 7 8 1 . 2 14 28 16 4 1 Power 9 | 1 1 . . 1 1 1 4 . . Engine 6 | 1 1 . . . 1 1 2 . . Core 3 | . . . . 1 . . 2 . . Reactor . | . . . . . . . . . . Propulsion 16 | 2 3 . . . 3 7 . 1 . Treads 5 | 2 1 . . . . 2 . . . Leg . | . . . . . . . . . . Wheel 11 | . 2 . . . 3 5 . 1 . Hover . | . . . . . . . . . . Flight . | . . . . . . . . . . Utility 29 | 2 2 . . . 9 11 2 2 1 Device 9 | 1 . . . . 3 3 1 . 1 Storage 3 | 1 2 . . . . . . . . Processor 2 | . . . . . 1 1 . . . Hackware . | . . . . . . . . . . Protection 15 | . . . . . 5 7 1 2 . Artifact . | . . . . . . . . . . Weapon 27 | 2 2 1 . 1 1 9 10 1 . Energy Gun 5 | . . . . . . . 4 1 . Energy Cannon 3 | . . . . . . . 3 . . Ballistic Gun 15 | 2 2 . . 1 1 7 2 . . Ballistic Cannon . | . . . . . . . . . . Launcher 3 | . . 1 . . . 1 1 . . Special Weapon . | . . . . . . . . . . Impact Weapon . | . . . . . . . . . . Slashing Weapon 1 | . . . . . . 1 . . . Piercing Weapon . | . . . . . . . . . . Special Melee Weapon . | . . . . . . . . . . Unidentified Prototypes 12 | . . . . . 1 1 9 1 . Corrupted Parts 1 | . . . . . . . 1 . . System Corruption 1 | . . . . . . . 1 . . Parts Lost 21 | . 2 . . . 4 4 2 1 8 Power 3 | . 1 . . . 1 . 1 . . Propulsion 9 | . 1 . . . 2 2 . 1 3 Utility 5 | . . . . . . 1 1 . 3 Weapon 4 | . . . . . 1 1 . . 2 Highest Loss Streak 8 | . 2 . . . 2 2 1 1 8 To Critical Strikes . | . . . . . . . . . . Average Backups 21 | 4 12 24 24 24 22 22 22 22 22 Power 1 | . . . . 1 1 1 2 3 2 Propulsion 1 | 2 2 4 3 3 1 1 1 1 1 Utility 7 | . 3 9 10 9 9 10 7 7 8 Weapon 9 | . 6 9 10 10 11 9 10 11 10 Tool/Special . | . . . . . . . . . . Unused Backups 59 | . 5 6 1 2 3 16 8 1 17 Power 4 | . . 1 . . . . 1 . 2 Propulsion 4 | . . . 1 . 1 1 . . 1 Utility 24 | . 3 3 . 1 2 6 2 1 6 Weapon 26 | . 2 2 . 1 . 8 5 . 8 Tool/Special 1 | . . . . . . 1 . . . Average Slot Usage (%) 99 | . 98 100 100 100 98 99 100 97 99 Engine 6 | . 13 14 14 . 2 7 2 . . Core 3 | . . . . 13 6 . 4 7 6 Treads 3 | . 9 . . . . 2 . 3 6 Wheel 20 | . 18 28 28 28 26 20 23 16 14 Device 13 | . 14 14 14 14 12 9 15 15 15 Storage 9 | . 14 14 14 14 9 7 7 7 7 Processor 5 | . . . . . . 10 7 7 7 Protection 11 | . . . . . 21 17 15 15 14 Energy Gun 2 | . . . . . . . 3 7 7 Energy Cannon 5 | . . . . . . . 17 15 14 Ballistic Gun 15 | . 28 26 14 27 18 22 1 . . Peak Build Rating 60 | 7 11 13 15 19 34 51 53 59 60 Average Rating 35 | 5 9 11 13 18 28 42 50 54 58 On Entrance 25 | . 7 11 12 15 19 34 47 52 59 Avg Prop Armor Cover (%) 7 | . 8 . . . . 6 . 7 7 Naked Turns . | . . . . . . . . . . Heaviest Build 130 | 13 90 90 90 92 105 123 130 126 126 Greatest Support 42 | 40 40 20 20 20 36 42 36 36 26 Greatest Overweight (x) 11 | . 4 4 4 4 5 11 3 4 10 Average Overweight (x) 3 | . 1 4 4 4 2 2 3 3 4 Largest Inventory Capacity 25 | 8 25 25 25 25 25 25 25 25 25 Average Capacity 23 | 7 15 25 25 25 25 25 25 25 25 Most Carried 25 | 7 24 25 25 25 25 25 25 25 25 Average Carried 22 | 4 12 24 24 24 23 24 24 24 24 Final Capacity 25 | 8 25 25 25 25 25 25 25 25 25 Final Carried 25 | 7 24 24 25 25 25 25 25 25 23 Class Distribution -------------------- 34% | Mutant 26% | Scavenger-Tank 19% | Commander-Tank 8% | Scavenger-Mutant 5% | Skirmisher 3% | Scavenger-Skirmisher Dominant Class ---------------- Mutant | -10/Materials Mutant | -10/Mines Mutant | -10/Exiles Mutant | -9/Mines Scavenger-Mutant | -8/Materials Scavenger-Tank | -7/Factory Scavenger-Tank | -7/Storage Commander-Tank | -7/Recycling Commander-Tank | -7/Scraptown Resources | -11 -10 -10 -10 -9 -8 -7 -7 -7 -7 ----------- Run | Yrd Mat Min Exi Min Mat Fac Sto Rec Scr Matter Collected 3327 | 360 676 36 . 100 380 1267 323 185 . Remotely . | . . . . . . . . . . Salvage Created 4756 | 211 602 71 . 107 762 1575 750 551 127 Parts 305 | 17 55 8 . 8 48 97 48 19 5 Haulers Intercepted 9 | . 2 . . . 2 2 3 . . Recyclers Shooed 3 | . 1 1 . . . 1 . . . Parts Field Recycled . | . . . . . . . . . . Retrieved Matter . | . . . . . . . . . . Parts Self-Destructed . | . . . . . . . . . . Prevented . | . . . . . . . . . . Parts Restored . | . . . . . . . . . . Kills | -11 -10 -10 -10 -9 -8 -7 -7 -7 -7 ------- Run | Yrd Mat Min Exi Min Mat Fac Sto Rec Scr Combat Hostiles Destroyed 74 | . 18 3 . 3 9 20 16 4 1 Melee 1 | . . . . . . 1 . . . Guns 50 | . 17 3 . 3 9 14 2 2 . Cannons 9 | . . . . . . . 6 2 1 AOE 12 | . 1 . . . . 5 6 . . Classes Destroyed 15 | 2 6 . . . 1 4 . 1 1 Worker 12 | . 2 . . . 2 8 . . . Builder 7 | . 2 . . . 1 4 . . . Tunneler 8 | 6 1 1 . . . . . . . Hauler 9 | . 2 . . . 2 2 3 . . Recycler 11 | 1 . . . . 2 5 . 3 . Watcher 4 | . 1 . . . . 1 2 . . Swarmer 23 | . 12 3 . . . 3 5 . . Grunt 30 | . 6 . . 3 6 7 7 . 1 Protector 2 | . . . . . . . . 2 . Sentry 7 | . . . . . 3 1 3 . . Specialist 1 | . . . . . . 1 . . . Hunter 4 | . . . . . . 3 . 1 . Programmer 6 | . . . . . . 4 1 1 . Heavy 1 | . . . . . . 1 . . . Scrapper 1 | . . . . . . . . . 1 Best Kill Streak 9 | 5 9 3 . 3 8 6 6 4 1 Combat Bots Only 6 | . 6 3 . 3 4 3 5 3 1 Max Kills in Single Turn 4 | 1 2 1 . 1 1 4 4 1 1 Gunslinging 1 | . 1 . . . . 1 . . . Exploded 2 | . 1 . . . . 1 2 . . Melee 1 | . . . . . . 1 . . . Uniques/NPCs Destroyed 1 | . . . . . . . . 1 . 01-MTF (-7/Recycling) Combat | -11 -10 -10 -10 -9 -8 -7 -7 -7 -7 -------- Run | Yrd Mat Min Exi Min Mat Fac Sto Rec Scr Hostile Shots Fired 485 | . 80 7 . 11 33 163 58 9 124 Missed 130 | . 25 2 . 5 5 51 21 3 18 Hits 355 | . 55 5 . 6 28 112 37 6 106 Melee 36 | . . . . . . . . . 36 Projectile 319 | . 55 5 . 6 28 112 37 6 70 AOE 2 | . . . . . . . . 2 . Critical Strikes 9 | . . . . . 2 6 . . 1 Actively Blocked 1 | . . . . . 1 . . . . Damage Taken 4966 | . 577 43 . 67 443 1888 440 87 1421 Core 814 | . 59 8 . 34 . 195 53 . 465 Absorbed by Shields 518 | . . . . . . 365 22 . 131 Redirected to Shielding 164 | . . . . . 27 137 . . . Ignored by Resistances 49 | . . . . . . 49 . . . Core Remaining (%) 86 | 100 . . . 59 100 . . . . Volleys Fired 279 | 15 55 7 . 6 41 76 50 18 11 Largest 3 | 2 2 2 . 2 2 3 3 3 2 Hottest 180 | 40 46 46 . 48 48 84 140 80 180 Shots Fired 632 | 30 110 12 . 11 81 218 101 55 14 Gun 494 | 30 110 10 . 10 81 212 18 17 6 Cannon 123 | . . . . . . . 78 38 7 Launcher 15 | . . 2 . 1 . 6 5 . 1 Special . | . . . . . . . . . . Kinetic 459 | 30 110 10 . 10 81 212 6 . . Thermal 158 | . . . . . . . 90 55 13 Explosive 15 | . . 2 . 1 . 6 5 . 1 Electromagnetic . | . . . . . . . . . . Robot Hit Streak 26 | 14 9 2 . 8 10 21 8 14 26 Robot Miss Streak 8 | 2 5 3 . 2 3 8 2 2 1 Penetration Max 1 | . . . . . . 1 . . 1 Secondary Targets 10 | . 4 . . 2 1 3 . . . Max Gunslinging Chain 2 | . 1 . . 1 1 2 . . . Shots Hit Robots 393 | 22 57 4 . 7 59 150 44 38 12 Core Hits 226 | 8 33 5 . 5 29 80 36 14 16 Critical Kills 4 | . . . . . 1 1 1 1 . Critical Parts Destroyed 3 | . . . . 1 1 1 . . . Critical Strikes 9 | . . . . 1 2 3 2 1 . Burn 1 | . . . . . . . 1 . . Meltdown 2 | . . . . . . . 1 1 . Destroy 5 | . . . . 1 2 2 . . . Sever 1 | . . . . . . 1 . . . Melee Attacks 10 | . . . . . . 10 . . . Impact . | . . . . . . . . . . Slashing 10 | . . . . . . 10 . . . Piercing . | . . . . . . . . . . Sneak Attacks 2 | . . . . . . 2 . . . Combat Hostiles . | . . . . . . . . . . Follow-up Attacks . | . . . . . . . . . . Damage Inflicted 9884 | 265 952 89 . 221 957 3374 2057 977 992 Guns 5533 | 265 840 81 . 119 957 2416 185 272 398 Cannons 2062 | . . . . . . . 983 705 374 Explosions 2009 | . 112 . . 102 . 686 889 . 220 Melee 272 | . . . . . . 272 . . . Ramming 8 | . . 8 . . . . . . . Kinetic 4708 | 265 840 81 . 119 957 2416 30 . . Thermal 2999 | . 112 . . . . . 1138 977 772 Explosive 1897 | . . . . 102 . 686 889 . 220 Electromagnetic . | . . . . . . . . . . Impact . | . . . . . . . . . . Slashing 272 | . . . . . . 272 . . . Piercing . | . . . . . . . . . . Highest Corruption 2 | . . . . . 1 1 2 2 . Average Corruption 1 | . . . . . 1 1 1 2 . Corruption Purged . | . . . . . . . . . . Corruption Blocked . | . . . . . . . . . . Effects 33 | . . . . . 3 4 10 16 . Message Errors 5 | . . . . . . 3 1 1 . Matter Fused 7 | . . . . . 2 1 3 1 . Heat Flow Errors 6 | . . . . . . . 2 4 . Energy Discharges 3 | . . . . . . . 3 . . Data Loss (minor) 4 | . . . . . . . 1 3 . Data Loss (major) 4 | . . . . . . . . 4 . Misfires 3 | . . . . . 1 . . 2 . Weapon Failures 1 | . . . . . . . . 1 . Overload Shots 8 | . . . . . . . 1 . 7 Overflow Damage 164 | . . . . . . 48 6 31 79 Projectiles 31 | . . . . . . . . 31 . Explosions 115 | . . . . . . 30 6 . 79 Melee 18 | . . . . . . 18 . . . Knockbacks . | . . . . . . . . . . Impact . | . . . . . . . . . . Kinetic . | . . . . . . . . . . Secondary . | . . . . . . . . . . Self-Inflicted Damage 179 | . 112 4 . 1 . . . . 62 Shots 3 | . 1 . . 1 . . . . 1 Rammed 1 | . . 1 . . . . . . . Targets Rammed 1 | . . 1 . . . . . . . Kicked . | . . . . . . . . . . Crushed . | . . . . . . . . . . Highest Temperature 324 | . 12 6 . 20 189 124 162 199 324 Average Temperature 45 | . 6 4 . 9 68 28 35 73 174 Received Heat Transfer 929 | . 60 . . 36 207 116 132 12 366 Effects 2 | . . . . . . . . . 2 Energy Bleed 1 | . . . . . . . . . 1 Interference 1 | . . . . . . . . . 1 Siege Activations . | . . . . . . . . . . Martial Activations . | . . . . . . . . . . Shielding Activations . | . . . . . . . . . . Robots Disrupted . | . . . . . . . . . . Combat Hostiles . | . . . . . . . . . . Robots Corrupted . | . . . . . . . . . . Combat Hostiles . | . . . . . . . . . . Parts Fried 2 | . . . . . . . 2 . . Impact Corruptions . | . . . . . . . . . . Robots Melted 3 | . . . . . . . 2 1 . Combat Hostiles 2 | . . . . . . . 2 . . Parts Melted 4 | . . . . . . . 2 1 1 Heat Transferred 4325 | . 50 . . . . . 1739 1387 1149 Parts Sabotaged . | . . . . . . . . . . Parts Stolen 4 | . . . . . . . . . 4 Parts Stripped . | . . . . . . . . . . Power Chain Reactions . | . . . . . . . . . . Alert | -11 -10 -10 -10 -9 -8 -7 -7 -7 -7 ------- Run | Yrd Mat Min Exi Min Mat Fac Sto Rec Scr Maximum Alert Level 2 | . 1 . . . 1 1 2 . . Low Security (%) 61 | 100 54 100 . 100 73 40 3 100 . Level 1 30 | . 45 . . . 26 59 28 . . Level 2 7 | . . . . . . . 68 . . Level 3 . | . . . . . . . . . . Level 4 . | . . . . . . . . . . Level 5 . | . . . . . . . . . . High Security . | . . . . . . . . . . Max Security . | . . . . . . . . . . Peak Influence 485 | 20 281 70 . 90 236 398 485 172 . Initial 171 | . 3 45 . . . 94 166 171 . Average 152 | 3 176 14 . 18 98 194 405 52 . Influence Increases 2921 | 35 605 86 . 90 376 782 651 296 . Destroy 0b10 Robot/C 1440 | . 360 60 . 60 180 400 320 60 . Destroy 0b10 Robot/NC 275 | 35 40 5 . . 35 100 25 35 . Destroy Leader 366 | . 76 10 . 10 54 136 80 . . Allied During Kill 21 | . . . . . . . . 21 . Successful Hack 93 | . 19 . . . 15 20 18 21 . Select Force Hacks 240 | . 60 . . . 30 . . 150 . Disable Machine 180 | . 30 . . 15 . 30 105 . . Destroy Structure 141 | . 5 11 . 5 2 36 73 9 . Partial Spotted 15 | . . . . . . . 15 . . Lose Combat Pursuer 150 | . 15 . . . 60 60 15 . . Influence Decreases 2921 | 30 493 203 . 90 167 625 576 737 . Entered New Map 659 | . 2 72 . . . 115 200 270 . Time Decay 2102 | 30 471 131 . 90 127 470 356 427 . Lost Part 130 | . 20 . . . 40 40 20 10 . Lost Ally 30 | . . . . . . . . 30 . Squads Dispatched 26 | . 4 . . . 3 14 5 . . Investigation 11 | . 4 . . . 1 4 2 . . Extermination 5 | . . . . . . 4 1 . . Reinforcement 9 | . . . . . 1 6 2 . . Assault . | . . . . . . . . . . Garrison 1 | . . . . . 1 . . . . Intercept . | . . . . . . . . . . Searches Triggered . | . . . . . . . . . . Construction Impeded 2 | . . . . . . 1 1 . . Haulers Reinforced 1 | . . . . . . . 1 . . Active Scanning Responses . | . . . . . . . . . . Cargo Convoy Interrupts 1 | . . . . . . 1 . . . Stealth | -11 -10 -10 -10 -9 -8 -7 -7 -7 -7 --------- Run | Yrd Mat Min Exi Min Mat Fac Sto Rec Scr Distress Signals 7 | . 1 . . . 1 3 2 . . Communications Jammed 4 | . . . . . . 3 1 . . Distress Signals 4 | . . . . . . 3 1 . . Times Spotted 139 | . 25 3 . 3 17 36 27 9 19 Peak Tracking Total 22 | . 7 3 . 3 7 5 6 2 22 Tactical Retreats 8 | . 1 . . . 3 3 1 . . Traps | -11 -10 -10 -10 -9 -8 -7 -7 -7 -7 ------- Run | Yrd Mat Min Exi Min Mat Fac Sto Rec Scr Traps Triggered 8 | . 1 . . . 1 6 . . . Indirectly . | . . . . . . . . . . Trap Hack Attempts . | . . . . . . . . . . Triggered . | . . . . . . . . . . Disarmed . | . . . . . . . . . . Reprogrammed . | . . . . . . . . . . Reused . | . . . . . . . . . . Traps Extracted . | . . . . . . . . . . Installed . | . . . . . . . . . . Triggered . | . . . . . . . . . . Machines | -11 -10 -10 -10 -9 -8 -7 -7 -7 -7 ---------- Run | Yrd Mat Min Exi Min Mat Fac Sto Rec Scr Machines Disabled 12 | . 2 . . 1 . 2 7 . . Max in Single Turn 2 | . 2 . . 1 . 1 1 . . Machines Repaired . | . . . . . . . . . . Machines Dismantled . | . . . . . . . . . . Machines Sabotaged . | . . . . . . . . . . Overloaded Fab Kills . | . . . . . . . . . . Hacking | -11 -10 -10 -10 -9 -8 -7 -7 -7 -7 --------- Run | Yrd Mat Min Exi Min Mat Fac Sto Rec Scr Machines Accessed 41 | . 9 1 1 . 4 9 6 11 . Terminals 26 | . 7 . . . 2 6 6 5 . Fabricators . | . . . . . . . . . . Repair Stations . | . . . . . . . . . . Recycling Units 11 | . 2 . . . 1 2 . 6 . Scanalyzers 2 | . . . . . 1 1 . . . Garrison Access . | . . . . . . . . . . Total Hacks 93 | . 27 1 1 . 10 18 9 27 . Successful 52 | . 13 1 1 . 7 6 3 21 . Failed 40 | . 14 . . . 2 12 6 6 . Catastrophic 13 | . 2 . . . . 5 4 2 . Database Lockouts 1 | . . . . . 1 . . . . Manual 66 | . 25 . 1 . 5 9 6 20 . Terminals 58 | . 21 . . . 5 12 9 11 . Fabricators . | . . . . . . . . . . Repair Stations . | . . . . . . . . . . Recycling Units 29 | . 6 . . . 2 5 . 16 . Scanalyzers 4 | . . . . . 3 1 . . . Garrison Access . | . . . . . . . . . . Terminal Hacks 8 | . 2 1 1 . 1 1 2 . . Robot Analysis 2 | . 2 . . . . . . . . Open Door 2 | . . 1 . . . . 1 . . Branch Access Points 2 | . . . . . 1 1 . . . Zone Layout 1 | . . . . . . . 1 . . Proto ID Catalog 1 | . . . 1 . . . . . . Fabricator Hacks . | . . . . . . . . . . Repair Station Hacks . | . . . . . . . . . . Recycling Unit Hacks 13 | . 3 . . . 1 2 . 7 . Report Inventory 12 | . 2 . . . 1 2 . 7 . Retrieve Components 1 | . 1 . . . . . . . . Scanalyzer 1 | . . . . . 1 . . . . Retrieve Study 1 | . . . . . 1 . . . . Garrison Access Hacks . | . . . . . . . . . . Unauthorized Hacks 30 | . 8 . . . 4 3 1 14 . Terminals 17 | . 6 . . . 3 1 1 6 . Botnet 4 | . 1 . . . 1 1 . 1 . Skim 13 | . 5 . . . 2 . 1 5 . Fabricators . | . . . . . . . . . . Repair Stations . | . . . . . . . . . . Recycling Units 13 | . 2 . . . 1 2 . 8 . Reject 3 | . . . . . . 1 . 2 . Mask 2 | . . . . . . 1 . 1 . Tunnel 8 | . 2 . . . 1 . . 5 . Scanalyzers . | . . . . . . . . . . Garrison Access . | . . . . . . . . . . Data Cores Recovered . | . . . . . . . . . . Used . | . . . . . . . . . . Hacking Detections 32 | . 8 . . . 2 9 5 8 . Full Trace Events 5 | . 1 . . . . 3 1 . . Feedback Events . | . . . . . . . . . . Feedback Blocked . | . . . . . . . . . . Robot Schematics Acquired . | . . . . . . . . . . Robots Built . | . . . . . . . . . . Authchips . | . . . . . . . . . . Time . | . . . . . . . . . . Total Robot Build Rating . | . . . . . . . . . . Part Schematics Acquired . | . . . . . . . . . . Parts Built . | . . . . . . . . . . Authchips . | . . . . . . . . . . Time . | . . . . . . . . . . Total Part Build Rating . | . . . . . . . . . . Part Studies Acquired 1 | . . . . . 1 . . . . Parts Repaired . | . . . . . . . . . . Time . | . . . . . . . . . . Parts Recycled . | . . . . . . . . . . Recycled Matter . | . . . . . . . . . . Retrieved Matter . | . . . . . . . . . . Retrieved Components 10 | . 10 . . . . . . . . Parts Scanalyzed . | . . . . . . . . . . Part Schematics Acquired . | . . . . . . . . . . Parts Damaged . | . . . . . . . . . . Bothacking | -11 -10 -10 -10 -9 -8 -7 -7 -7 -7 ------------ Run | Yrd Mat Min Exi Min Mat Fac Sto Rec Scr Used RIF Installer . | . . . . . . . . . . Robots Hacked . | . . . . . . . . . . Non-combat . | . . . . . . . . . . Combat . | . . . . . . . . . . Robot Hacks Applied . | . . . . . . . . . . Relay Couplers Released . | . . . . . . . . . . Fabnet Peak Effective % . | . . . . . . . . . . Robots Rewired 13 | . . . . . . . . 13 . Allies Hacked . | . . . . . . . . . . Hacks Repelled . | . . . . . . . . . . Allies | -11 -10 -10 -10 -9 -8 -7 -7 -7 -7 -------- Run | Yrd Mat Min Exi Min Mat Fac Sto Rec Scr Total Allies 13 | . . . . . . . . 13 . Largest Group 12 | . . . . . . . . 12 11 Highest-Rated Group 325 | . . . . . . . . 325 285 Highest-Rated Ally 40 | . . . . . . . . 40 40 Total Orders 3 | . . . . . . . . . 3 STAY 2 | . . . . . . . . . 2 FOLLOW 1 | . . . . . . . . . 1 Ally Attacks 33 | . . . . . . . . 4 29 Total Damage 1002 | . . . . . . . . 52 950 Kills 4 | . . . . . . . . 1 3 Allies Corrupted . | . . . . . . . . . . Allies Melted 1 | . . . . . . . . 1 . Intel | -11 -10 -10 -10 -9 -8 -7 -7 -7 -7 ------- Run | Yrd Mat Min Exi Min Mat Fac Sto Rec Scr Active Infowar (turns) 7394 | 100 1229 678 314 440 418 2244 756 1209 6 Sensors 1 | . . . . . 1 . . . . Structural 2091 | . . . . . 414 1677 . . . Seismic 2917 | 100 1229 678 314 440 156 . . . . Jamming 2547 | . . . . . . 576 756 1209 6 Robot Analysis Total 2 | . 2 . . . . . . . . Derelict Logs Recovered 3 | . . 2 . 1 . . . . . Drone Launches . | . . . . . . . . . . Drone Recoveries . | . . . . . . . . . . Exploration | -11 -10 -10 -10 -9 -8 -7 -7 -7 -7 ------------- Run | Yrd Mat Min Exi Min Mat Fac Sto Rec Scr Turns Passed 8384 | 213 1229 678 314 440 418 2244 814 1209 825 Spaces Moved 5249 | 97 744 460 223 299 228 1501 484 692 521 Core 5 | 5 . . . . . . . . . Treads 274 | 92 182 . . . . . . . . Legs . | . . . . . . . . . . Wheels 4970 | . 562 460 223 299 228 1501 484 692 521 Hover . | . . . . . . . . . . Flight . | . . . . . . . . . . Fastest Speed 50 | 50 95 140 140 140 110 110 125 125 145 Average Speed 131 | 154 128 140 140 140 114 121 125 140 145 Slowest Speed 235 | 160 160 140 140 140 145 235 125 145 220 Overloaded Moves . | . . . . . . . . . . Propulsion Burnouts . | . . . . . . . . . . Robots Hopped . | . . . . . . . . . . Potential Cave-ins 3 | . . . . . . . 3 . . Cave-ins Triggered . | . . . . . . . . . . Exploration Rate (%) 59 | 5 98 79 60 59 28 42 69 98 52 Regions Visited 9 Branch Regions 6 Pre-discovered Areas 9 | . 3 . . . 1 . . 5 . Known Exits Taken 5 | . . 1 . . 1 1 1 1 . Unknown Exits Taken 4 | 1 1 . 1 1 . . . . . Scrap Searched 3 | . . 1 . 1 . . . . 1 Spaces Dug 26 | . . 13 . . . 2 11 . . Terrain Destroyed 149 | . 5 13 . 5 . 40 75 11 . Melee 2 | . . . . . . 2 . . . Projectile 38 | . . . . . . . 27 11 . AOE 109 | . 5 13 . 5 . 38 48 . . Terrain Rammed . | . . . . . . . . . . Walls Destroyed . | . . . . . . . . . . Machines Disabled . | . . . . . . . . . . Actions | -11 -10 -10 -10 -9 -8 -7 -7 -7 -7 --------- Run | Yrd Mat Min Exi Min Mat Fac Sto Rec Scr Total 6256 | 127 929 489 226 313 322 1777 607 891 575 Wait 289 | 2 80 3 . . 20 95 18 31 40 Move 5240 | 96 743 459 222 298 227 1500 483 691 521 Hop . | . . . . . . . . . . Pick Up 106 | 7 28 9 2 3 13 27 14 3 . Fast Attach 10 | 7 1 . . . 1 . 1 . . Attach 20 | . 1 . . . 7 7 2 1 2 Detach . | . . . . . . . . . . Swap 71 | . 6 1 . 2 6 30 21 4 1 Drop 88 | . 15 9 2 4 7 32 14 5 . Fire 279 | 15 55 7 . 6 41 76 50 18 11 Melee 10 | . . . . . . 10 . . . Ram 1 | . . 1 . . . . . . . Kick . | . . . . . . . . . . Crush . | . . . . . . . . . . Escape Stasis . | . . . . . . . . . . Rewire 142 | . . . . . . . 4 138 . Trap . | . . . . . . . . . . Miscellaneous . | . . . . . . . . . . Route ------- -11/Scrapyard -10/Materials (discovered 5 exits: [*Mat x3] / *Min / *Sub) -10/Mines (discovered 3 exits: [*Mat x2] / *Exi) -10/Exiles -9/Mines -8/Materials (discovered 2 exits: *Fac x2) -7/Factory (discovered 5 exits: *Fac / *Sto x2 / *Low x2) -7/Storage (discovered 2 exits: *Fac / *Rec) -7/Recycling (discovered 2 exits: *Fac / *Scr) -7/Scraptown (discovered 2 exits: *Fac x2) History --------- Turn | Location | Event 37 | -11/Scrapyard | Discovered new exit (range 15) 214 | -11/Scrapyard | Entered Materials 310 | -10/Materials | Build established: Mutant 495 | -10/Materials | Discovered new exit (range 16) 558 | -10/Materials | Discovered new exit (range 5) 594 | -10/Materials | Discovered new exit (range 12) 661 | -10/Materials | Discovered new exit (range 13) 787 | -10/Materials | Learned location of Recycling (-7) 899 | -10/Materials | Learned location of 1 exit from Recycling 939 | -10/Materials | Loaded intel: 39 machine locations 969 | -10/Materials | Learned 2 Mines zone layouts 1010 | -10/Materials | Learned location of 1 exit from Storage 1062 | -10/Materials | Identified exit to Subcaves 1443 | -10/Materials | Entered Mines 1444 | -10/Mines | Identified exit to Exiles 1483 | -10/Mines | Deemed a non-threat by the Exiles lab entrance 1652 | -10/Mines | Found a damaged Exp. Sensor Array with a note attached 1655 | -10/Mines | Found Prototype Device 1733 | -10/Mines | Learned 2 Materials zone layouts 1746 | -10/Mines | Discovered new exit (range 5) 1948 | -10/Mines | Met a Derelict who couldn't figure out how to use a Trap Extractor 1950 | -10/Mines | Learned location of 2 exits from Materials 2040 | -10/Mines | Discovered new exit (range 12) 2121 | -10/Mines | Entered Exiles 2169 | -10/Exiles | Met 8R-AWN 2192 | -10/Exiles | Met EX-HEX 2236 | -10/Exiles | Met EX-BIN 2251 | -10/Exiles | Aligned with FarCom system 2253 | -10/Exiles | Given EX-Vault access code 2288 | -10/Exiles | Opened EX-Vault 2297 | -10/Exiles | Found Firepult 2326 | -10/Exiles | Warned to stay clear of 0b10 Research branches 2372 | -10/Exiles | Met EX-DEC 2420 | -10/Exiles | Discovered new exit (range 14) 2435 | -10/Exiles | Left Exiles lab with Firepult 2435 | -10/Exiles | Entered Mines 2469 | -9/Mines | Learned Materials emergency access door positions 2506 | -9/Mines | Met a Derelict bent on vengeance 2821 | -9/Mines | Discovered new exit (range 10) 2875 | -9/Mines | Entered Materials 2875 | -8/Materials | Evolved 4 slots: Propulsion x1, Utility x3 2876 | -8/Materials | Identified exit to Factory 2876 | -8/Materials | Identified Exp. Sensor Array 2919 | -8/Materials | Central database locked down 3153 | -8/Materials | Garrison activated, responded to threat 3293 | -8/Materials | Entered Factory 3293 | -7/Factory | Evolved 2 slots: Utility x1, Weapon x1 3620 | -7/Factory | Build established: Scavenger-Tank 3749 | -7/Factory | Discovered new exit (range 3) 4087 | -7/Factory | Identified exit to Lower Caves 4257 | -7/Factory | Cargo convoy interrupted 4408 | -7/Factory | Discovered new exit (range 5) 4412 | -7/Factory | Identified exit to Factory 4689 | -7/Factory | Build established: Skirmisher 4865 | -7/Factory | Discovered exit to Lower Caves (range 4) 5263 | -7/Factory | Identified exit to Storage 5300 | -7/Factory | Build established: Scavenger-Tank 5537 | -7/Factory | Entered Storage 5538 | -7/Storage | Identified exit to Recycling 5585 | -7/Storage | Met 01-MTF 6351 | -7/Storage | Entered Recycling 6351 | -7/Recycling | Accompanied by 2 allies (01-MTF) 6352 | -7/Recycling | Identified exit to Scraptown 6508 | -7/Recycling | Discovered new exit (range 16) 6999 | -7/Recycling | Build established: Commander-Tank 7335 | -7/Recycling | Learned 8 Factory zone layouts 7365 | -7/Recycling | Learned location of 3 exits from Factory 7385 | -7/Recycling | Learned location of 1 exit from Lower Caves 7395 | -7/Recycling | Learned Extension terminal intel 7396 | -7/Recycling | Learned location of 1 exit from Hub_04(d) 7397 | -7/Recycling | Learned location of 1 exit from Cetus 7404 | -7/Recycling | Learned Factory non-interactive machine intel 7420 | -7/Recycling | Learned Factory fabricator intel 7476 | -7/Recycling | Scanned before Scraplab entrance 7502 | -7/Recycling | Murdered 01-MTF 7505 | -7/Recycling | Found Prototype Energy Gun 7505 | -7/Recycling | Identified KN-7UR's Autopenetrator 7526 | -7/Recycling | Entered Scraplab 7560 | -7/Recycling | Entered Scraptown 7560 | -7/Scraptown | Accompanied by 11 allies 7560 | -7/Scraptown | System corruption cleaned by C-Scrubber 7561 | -7/Scraptown | Identified exit to Factory 7666 | -7/Scraptown | Turned away by UFD registrar 7687 | -7/Scraptown | Visited Shadow of the Wyrm 7703 | -7/Scraptown | Visited CR-KLE's Repair Center 7711 | -7/Scraptown | Visited Comm Corps 7737 | -7/Scraptown | Visited Symbiants 7769 | -7/Scraptown | Visited Red Mages 7814 | -7/Scraptown | Visited The Evicted 8126 | -7/Scraptown | Heard Great Nut preacher, LISTEN AND RECITE! 8356 | -7/Scraptown | Attacked by Scraptown defenders 8376 | -7/Scraptown | Core integrity fell below 50% 8382 | -7/Scraptown | Core integrity fell below 20% 8385 | -7/Scraptown | Destroyed by SI-N0I(x) with Makeshift Spear Last Messages --------------- 08380_ Cld. Particle Cannon ripped off. 08380_ Thermabolt penetrates ZW-UPV(g). 08380_ Thermabolt penetrates FI-538(r). 08380_ Thermabolt penetrates Triborg. 08380_ Thermabolt penetrates FI-538(r). 08380_ Thermabolt penetrates Triborg. 08380_ Thermabolt penetrates FI-538(r). 08380_ Thermabolt penetrates Triborg. 08381_ Wheel+ destroyed. 08382_ Triborg exits siege mode. 08382_ FW-ESD(j) heat damages Mak. Microdissipator Network. 08382_ Imp. Cooling System ripped off. 08383_ Thermabolt penetrates Triborg. 08384_ Triborg activates siege mode. 08384_ Penetrated by Siege Slug. 08384_ Knocked back. 08384_ Penetrated by Siege Slug. 08384_ Power Amplifier destroyed. 08385_ Critical hit (Burn: +37). 08385_ KN-7UR's Autopenetrator destroyed. Map ----- +----------------------------------------------------+ | " "#???? #????????????????????????? | | #?????? ?????????????????????????? | | ######### ########### ####???????????????????????? | | #???????????????????????? | | #???????????????????????? | | #???????????????????????? | | #???????????????????????? | | #???????????????????????? | | ########### #### #???????????????????????? | | ????????? #?# #???????????????????????? | | ??????? #?# #???????????????????????? | | ????? #?# #???????????????????????? | | ???""" """""#?# #???????????????????????? | | ??""""" """""#?# #???????????????????????? | | ???"""" """""#?# g ###?????????????????????? | | ???"""" """""#?# ""#"#???????????????????? | | ????"""???"""??# ! """"#???????????????????? | | ???????????????# c !%=""###???????????????????? | | ???????????????# ! ###?????????????????????? | | ???????????????# #########???????????????? | | ???????????????# [ ????????????????? | | ???????????????# [%! ??????????????????? | | ???????????????# !%=*= i "???????????????????? | | ???????????????# *%*%*%!% """?????????????????? | | ################ *=!%!TTx "?????????????????? | | !%=!gTTr@ "???????????????????? | | pj j!% % r "???????????????????? | | [ %] "???????????????????? | | p %%% "???????????????????? | | "???????????????????? | | #"???????????????????? | | ;"???????????????????? | | g #"???????????????????? | | ################## ### j####????????????????????? | | ???????????????? ## #???????????????????????? | | ""???????????? ## j #???????????????????????? | | " ????????? ##g #???????????????????????? | | " ""?????? ## #???????????????????????? | | " "?????? """"" ## #???????????????????????? | | "" ""????? """"" ## #???????????????????????? | | "" ""????#???"""" ## #???????????????????????? | | " ? ""????????? ## #???????????????????????? | | ?????"??????????? ## #???????????????????????? | | ?????????????????##### #???????????????????????? | | ?????????????????????# #???????????????????????? | | ????????????????###### #???????????????????????? | | ??????????????"""""""" #???????????????????????? | | ?????????????""" """"" #???????????????????????? | | ?????##?????""" " "" #???????????????????????? | | ????? ?? #???????????????????????? | +----------------------------------------------------+ Best States ------------- Heat Dissipation 61 Energy Generation 31 Energy Capacity 310 Matter Stores 300 Matter Capacity 300 Sight Range 16 Terrain Scan Density 10 Jamming Range 12 Power Amplification 20 Armor Coverage 450 Resistance: EM 20 Propulsion Shielding 66 Weapon Shielding 66 Evasion (%) 41 Targeting Accuracy 8 Recoil Reduction 2 Authchip Count 1 Item Schematics ----------------- None Robot Schematics ------------------ None Fabricated ------------ Nothing Repaired ---------- Nothing Studied --------- Wheel | -8/Materials | Hacked Alien Tech Used ----------------- None Achievements -------------- Frienemies Challenges ------------ None Game ------ Seed GravityRiotNanosword Manual? 0 Play Time 01:09:26 Cumulative 320.4 hours Start 2025.12.29 @ 20:16:44 End 2025.12.30 @ 13:48:23 Sessions 3 Manual Loads 0 Difficulty Rogue Special Mode None Game No. 383 Rogue 383 Adventurer 0 Explorer 0 Win Type - Total 21 Types 13/0/3/1/1/0/1/1/0/1 Lore% 78 Gallery% 78 Achievement% 65 Wizard Run 0 Options --------- Layout 1 ASCII 0 Keyboard 1 Movement Numpad Keybinds 0 Fullscreen 2 Font 32/SmallcapsGlow Map View 77x35 Zoom Use 0% Tactical HUD 1 Map Filters NONE Filters NONE Steam 1 RUN: 50827d80-264a-44f0-b495-11190abe55a9